[Event "Kupreichik Memorial Rapid 2019"]
[Site "Minsk"]
[Date "2019.08.16"]
[Round "7.1"]
[White "Safarli, Eltaj"]
[Black "Mustaps, Matiss"]
[Result "1-0"]
[ECO "B07"]
[WhiteElo "2593"]
[BlackElo "2381"]
[Annotator "ChessBase"]
[PlyCount "65"]
[EventDate "2019.08.15"]
[EventType "swiss"]
[EventCountry "BLR"]
[SourceTitle "playchess.com"]
[Source "ChessBase"]
[SourceQuality "1"]
[TimeControl "900+10"]

1. e4 {[%emt 0:00:00]} d6 {[%emt 0:00:00]} 2. d4 {[%emt 0:00:00]} Nf6 {[%emt 0:00:00]} 3. Nc3 {[%emt 0:00:00]} g6 {[%emt 0:00:00]} 4. Bg5 {[%emt 0:00:00]} Bg7 {[%emt 0:00:02]} 5. Qd2 {[%emt 0:00:00]} h6 {[%emt 0:00:13]} 6. Bh4 {[%emt 0:00:02]} g5 {[%emt 0:01:59]} 7. Bg3 {[%emt 0:00:03]} Nh5 {[%emt 0:00:01]} 8. Nge2 {[%emt 0:00:28]} Nd7 {[%emt 0:01:21]} 9. h4 {[%emt 0:00:35]} g4 {[%emt 0:00:33]} 10. O-O-O {[%emt 0:00:20]} c5 {[%emt 0:00:17]} 11. Bh2 {[%emt 0:00:33]} O-O {[%emt 0:00:29]} 12. dxc5 {[%emt 0:00:38]} dxc5 {[%emt 0:01:41]} 13. Nf4 {[%emt 0:01:34]} Nxf4 {[%emt 0:00:10]} 14. Bxf4 {[%emt 0:00:02]} Qb6 {[%emt 0:00:01]} 15. Bc4 {[%emt 0:02:07]} Ne5 {[%emt 0:00:40]} 16. Bb3 {[%emt 0:01:19]} c4 {[%emt 0:01:14]} 17. Bxe5 {[%emt 0:02:16]} Bxe5 {[%emt 0:01:43]} 18. Bxc4 {[%emt 0:00:08]} Qc7 {[%emt 0:00:01]} 19. Nd5 {[%emt 0:02:02]} Qxc4 {[%emt 0:00:03]} 20. Qxh6 {[%emt 0:00:04]} f5 {[%emt 0:04:51]} 21. Nxe7+ {[%emt 0:02:21]} Kf7 {[%emt 0:00:01]} 22. Qh7+ {[%emt 0:00:06]} Ke8 {[%emt 0:00:37]} 23. Nd5 {[%emt 0:00:51]} Qc5 {[%emt 0:00:54]} 24. Qg6+ {[%emt 0:00:19]} Kd8 {[%emt 0:01:12]} 25. Qg5+ {[%emt 0:00:56]} Ke8 {[%emt 0:00:10]} 26. Rhe1 {[%emt 0:00:07]} Be6 {[%emt 0:00:48]} 27. exf5 {[%emt 0:00:26]} Rxf5 {[%emt 0:00:01]} 28. Qg6+ {[%emt 0:00:03]} Kd7 {[%emt 0:00:12]} 29. Nf4+ {[%emt 0:00:10]} Kc6 {[%emt 0:00:25]} 30. Qxe6+ {[%emt 0:00:04]} Kc7 {[%emt 0:00:10]} 31. Nd5+ {[%emt 0:00:18]} Kb8 {[%emt 0:00:10]} 32. Qe8+ {[%emt 0:00:22]} Qc8 {[%emt 0:00:02]} 33. Qxc8+ {[%emt 0:00:02]} 1-0

[Event "Kupreichik Memorial Rapid 2019"]
[Site "Minsk"]
[Date "2019.08.16"]
[Round "7.2"]
[White "Zhigalko, Sergei"]
[Black "Meshkov, Yuri A."]
[Result "1-0"]
[ECO "B06"]
[WhiteElo "2574"]
[BlackElo "2336"]
[Annotator "ChessBase"]
[PlyCount "179"]
[EventDate "2019.08.15"]
[EventType "swiss"]
[EventCountry "BLR"]
[SourceTitle "playchess.com"]
[Source "ChessBase"]
[SourceQuality "1"]
[TimeControl "900+10"]

1. e4 {[%emt 0:00:00]} g6 {[%emt 0:00:00]} 2. d4 {[%emt 0:00:00]} Bg7 {[%emt 0:00:00]} 3. Nc3 {[%emt 0:00:00]} a6 {[%emt 0:00:00]} 4. Nf3 {[%emt 0:00:00]} d6 {[%emt 0:00:00]} 5. Be3 {[%emt 0:00:00]} b5 {[%emt 0:00:10]} 6. a4 {[%emt 0:00:02]} b4 {[%emt 0:00:02]} 7. Ne2 {[%emt 0:00:01]} Bb7 {[%emt 0:00:09]} 8. Ng3 {[%emt 0:00:02]} Nd7 {[%emt 0:00:04]} 9. c3 {[%emt 0:00:09]} Ngf6 {[%emt 0:00:17]} 10. Bd3 {[%emt 0:00:02]} bxc3 {[%emt 0:01:03]} 11. bxc3 {[%emt 0:00:02]} c5 {[%emt 0:00:01]} 12. a5 {[%emt 0:00:20]} Qc7 {[%emt 0:00:04]} 13. O-O {[%emt 0:00:05]} O-O {[%emt 0:00:08]} 14. Re1 {[%emt 0:00:48]} Rfb8 {[%emt 0:00:40]} 15. h3 {[%emt 0:00:06]} Ne8 {[%emt 0:01:24]} 16. Qd2 {[%emt 0:00:14]} e6 {[%emt 0:02:40]} 17. Bh6 {[%emt 0:00:34]} Bf6 {[%emt 0:00:24]} 18. Qe2 {[%emt 0:02:37]} Bc6 {[%emt 0:00:37]} 19. Ra3 {[%emt 0:03:59]} cxd4 {[%emt 0:00:28]} 20. cxd4 {[%emt 0:00:05]} Bb5 {[%emt 0:00:03]} 21. Rc1 {[%emt 0:00:15]} Qd8 {[%emt 0:00:07]} 22. e5 {[%emt 0:01:59]} Be7 {[%emt 0:00:01]} 23. d5 {[%emt 0:04:10]} dxe5 {[%emt 0:00:18]} 24. dxe6 {[%emt 0:00:32]} fxe6 {[%emt 0:00:14]} 25. Rac3 {[%emt 0:00:49]} Nef6 {[%emt 0:01:31]} 26. Nxe5 {[%emt 0:00:31]} Nxe5 {[%emt 0:00:09]} 27. Qxe5 {[%emt 0:00:02]} Qd6 {[%emt 0:00:40]} 28. Qe2 {[%emt 0:00:41]} Nd5 {[%emt 0:01:00]} 29. Rb3 {[%emt 0:00:14]} Bxd3 {[%emt 0:00:28]} 30. Rxd3 {[%emt 0:00:06]} Rb5 {[%emt 0:00:26]} 31. Re1 {[%emt 0:00:40]} Rxa5 {[%emt 0:01:19]} 32. Qg4 {[%emt 0:00:14]} Nf6 {[%emt 0:00:27]} 33. Rxd6 {[%emt 0:00:34]} Nxg4 {[%emt 0:00:02]} 34. Rdxe6 {[%emt 0:00:04]} Nxh6 {[%emt 0:00:03]} 35. Rxe7 {[%emt 0:00:01]} Nf5 {[%emt 0:00:19]} 36. Rc7 {[%emt 0:00:05]} Rf8 {[%emt 0:00:51]} 37. Ne4 {[%emt 0:00:02]} Rf7 {[%emt 0:00:23]} 38. Rc6 {[%emt 0:00:20]} Kg7 {[%emt 0:01:39]} 39. Rd1 {[%emt 0:00:41]} Re7 {[%emt 0:00:50]} 40. Nc5 {[%emt 0:00:08]} Ra2 {[%emt 0:00:20]} 41. Nxa6 {[%emt 0:00:13]} Ree2 {[%emt 0:00:06]} 42. Nb4 {[%emt 0:00:04]} Rab2 {[%emt 0:00:17]} 43. Nd3 {[%emt 0:00:02]} Ra2 {[%emt 0:00:01]} 44. Rc7+ {[%emt 0:00:04]} Kh6 {[%emt 0:00:09]} 45. Rc4 {[%emt 0:00:28]} Kg5 {[%emt 0:00:37]} 46. Rg4+ {[%emt 0:00:18]} Kf6 47. Rb4 {[%emt 0:00:04]} h5 {[%emt 0:00:09]} 48. Rb6+ {[%emt 0:00:03]} Kg5 {[%emt 0:00:03]} 49. Kf1 {[%emt 0:00:13]} h4 {[%emt 0:00:30]} 50. Rxg6+ {[%emt 0:00:05]} Kxg6 {[%emt 0:00:03]} 51. Nf4+ {[%emt 0:00:01]} Kg5 {[%emt 0:00:01]} 52. Nxe2 {[%emt 0:00:01]} Ra4 {[%emt 0:00:05]} 53. Ng1 {[%emt 0:00:15]} Kf6 {[%emt 0:00:10]} 54. Nf3 {[%emt 0:00:02]} Ra2 {[%emt 0:00:02]} 55. Kg1 {[%emt 0:00:29]} Rb2 {[%emt 0:00:08]} 56. Rd2 {[%emt 0:00:04]} Rb1+ {[%emt 0:00:01]} 57. Kh2 {[%emt 0:00:01]} Rf1 {[%emt 0:00:06]} 58. Re2 {[%emt 0:00:14]} Ra1 {[%emt 0:00:17]} 59. Re4 {[%emt 0:00:19]} Rf1 {[%emt 0:00:05]} 60. Nxh4 {[%emt 0:00:22]} Nxh4 {[%emt 0:00:12]} 61. Rxh4 {[%emt 0:00:04]} Rxf2 {[%emt 0:00:00]} 62. Ra4 {[%emt 0:00:05]} Kg6 {[%emt 0:00:11]} 63. h4 {[%emt 0:00:07]} Rb2 {[%emt 0:00:33]} 64. Kh3 {[%emt 0:00:04]} Rb6 {[%emt 0:00:57]} 65. Kg4 {[%emt 0:00:12]} Kh6 {[%emt 0:00:01]} 66. g3 {[%emt 0:00:13]} Rc6 {[%emt 0:00:05]} 67. Ra5 {[%emt 0:00:12]} Rc4+ {[%emt 0:00:02]} 68. Kh3 {[%emt 0:00:05]} Rc3 {[%emt 0:00:01]} 69. Ra6+ {[%emt 0:00:24]} Kh5 {[%emt 0:00:04]} 70. Ra5+ {[%emt 0:00:10]} Kh6 {[%emt 0:00:01]} 71. h5 {[%emt 0:00:10]} Rc1 {[%emt 0:00:05]} 72. Kh4 {[%emt 0:00:08]} Rh1+ {[%emt 0:00:14]} 73. Kg4 {[%emt 0:00:01]} Rb1 {[%emt 0:00:09]} 74. Ra6+ {[%emt 0:00:03]} Kh7 {[%emt 0:00:00]} 75. Kg5 {[%emt 0:00:05]} Rb5+ {[%emt 0:00:02]} 76. Kh4 {[%emt 0:00:02]} Rc5 {[%emt 0:00:02]} 77. g4 {[%emt 0:00:08]} Rc1 {[%emt 0:00:14]} 78. Ra7+ {[%emt 0:00:03]} Kg8 {[%emt 0:00:00]} 79. h6 {[%emt 0:00:07]} Rc4 {[%emt 0:00:17]} 80. Kh5 {[%emt 0:00:03]} Rc6 {[%emt 0:00:17]} 81. g5 {[%emt 0:00:05]} Rc5 {[%emt 0:00:04]} 82. Re7 {[%emt 0:00:59]} Kh8 {[%emt 0:01:12]} 83. Kg6 {[%emt 0:00:09]} Rc8 {[%emt 0:00:14]} 84. Kf6 {[%emt 0:00:10]} Rf8+ {[%emt 0:00:36]} 85. Rf7 {[%emt 0:00:13]} Ra8 {[%emt 0:00:04]} 86. g6 {[%emt 0:00:10]} Rb8 {[%emt 0:00:25]} 87. Kg5 {[%emt 0:00:16]} Ra8 {[%emt 0:00:28]} 88. Rf5 {[%emt 0:00:07]} Rg8 {[%emt 0:00:09]} 89. Kh5 {[%emt 0:00:09]} Ra8 {[%emt 0:00:19]} 90. h7 {[%emt 0:00:11]} 1-0

[Event "Kupreichik Memorial Rapid 2019"]
[Site "Minsk"]
[Date "2019.08.16"]
[Round "7.3"]
[White "Tiviakov, Sergei"]
[Black "Zhukova, Natalia"]
[Result "1/2-1/2"]
[ECO "C09"]
[WhiteElo "2611"]
[BlackElo "2333"]
[Annotator "ChessBase"]
[PlyCount "64"]
[EventDate "2019.08.15"]
[EventType "swiss"]
[EventCountry "BLR"]
[SourceTitle "playchess.com"]
[Source "ChessBase"]
[SourceQuality "1"]
[TimeControl "900+10"]

1. e4 {[%emt 0:00:00]} e6 {[%emt 0:00:00]} 2. d4 {[%emt 0:00:00]} d5 {[%emt 0:00:00]} 3. Nd2 {[%emt 0:00:00]} c5 {[%emt 0:00:00]} 4. exd5 {[%emt 0:00:00]} exd5 {[%emt 0:00:00]} 5. Ngf3 {[%emt 0:00:00]} Nc6 {[%emt 0:00:00]} 6. Bb5 {[%emt 0:00:09]} Qe7+ {[%emt 0:00:01]} 7. Be2 {[%emt 0:00:51]} Qc7 {[%emt 0:00:02]} 8. O-O {[%emt 0:00:06]} Nf6 {[%emt 0:00:03]} 9. dxc5 {[%emt 0:00:43]} Bxc5 {[%emt 0:00:02]} 10. Nb3 {[%emt 0:00:02]} Be7 {[%emt 0:00:04]} 11. h3 {[%emt 0:00:33]} O-O {[%emt 0:00:04]} 12. Be3 {[%emt 0:00:02]} Bf5 {[%emt 0:00:21]} 13. c3 {[%emt 0:00:04]} Rfe8 {[%emt 0:02:50]} 14. Nbd4 {[%emt 0:00:32]} Bg6 {[%emt 0:00:19]} 15. Re1 {[%emt 0:01:59]} h6 {[%emt 0:00:14]} 16. Bf1 {[%emt 0:00:33]} Bf8 {[%emt 0:00:24]} 17. Bd3 {[%emt 0:03:37]} Ne4 {[%emt 0:00:33]} 18. Qc2 {[%emt 0:00:17]} Rac8 {[%emt 0:01:14]} 19. Rad1 {[%emt 0:00:18]} Bh5 {[%emt 0:00:12]} 20. Rc1 {[%emt 0:00:15]} Qd7 {[%emt 0:02:30]} 21. Qb1 {[%emt 0:00:29]} Bd6 {[%emt 0:00:43]} 22. c4 {[%emt 0:04:53]} Bb4 {[%emt 0:02:57]} 23. Rf1 {[%emt 0:00:17]} Nxd4 {[%emt 0:01:06]} 24. Nxd4 {[%emt 0:00:02]} Bg6 {[%emt 0:00:00]} 25. cxd5 {[%emt 0:00:27]} Qxd5 {[%emt 0:00:28]} 26. Rxc8 {[%emt 0:00:18]} Rxc8 {[%emt 0:00:01]} 27. Rd1 {[%emt 0:00:04]} Qh5 {[%emt 0:01:46]} 28. Ne2 {[%emt 0:00:15]} Qe5 {[%emt 0:02:27]} 29. a3 {[%emt 0:00:11]} Ba5 {[%emt 0:00:58]} 30. Nf4 {[%emt 0:00:20]} Bf5 {[%emt 0:00:11]} 31. Ne2 {[%emt 0:00:55]} Bb6 {[%emt 0:00:20]} 32. Bxb6 {[%emt 0:00:16]} axb6 {[%emt 0:00:00]} 1/2-1/2

[Event "Kupreichik Memorial Rapid 2019"]
[Site "Minsk"]
[Date "2019.08.16"]
[Round "7.4"]
[White "Aleksandrov, Aleksej"]
[Black "Pein, Malcolm"]
[Result "1-0"]
[ECO "D83"]
[WhiteElo "2571"]
[BlackElo "2312"]
[Annotator "ChessBase"]
[PlyCount "73"]
[EventDate "2019.08.15"]
[EventType "swiss"]
[EventCountry "BLR"]
[SourceTitle "playchess.com"]
[Source "ChessBase"]
[SourceQuality "1"]
[TimeControl "900+10"]

1. d4 {[%emt 0:00:00]} Nf6 {[%emt 0:00:00]} 2. c4 {[%emt 0:00:00]} g6 {[%emt 0:00:03]} 3. Nc3 {[%emt 0:00:00]} d5 {[%emt 0:00:03]} 4. Bf4 {[%emt 0:00:16]} Bg7 {[%emt 0:00:02]} 5. e3 {[%emt 0:00:02]} O-O {[%emt 0:00:11]} 6. Rc1 {[%emt 0:00:01]} c6 {[%emt 0:00:53]} 7. Nf3 {[%emt 0:00:18]} Be6 {[%emt 0:00:02]} 8. Qb3 {[%emt 0:00:34]} Qb6 {[%emt 0:00:37]} 9. c5 {[%emt 0:00:02]} Qxb3 {[%emt 0:00:03]} 10. axb3 {[%emt 0:00:01]} h6 {[%emt 0:01:32]} 11. h3 {[%emt 0:00:19]} Nbd7 {[%emt 0:00:09]} 12. Bd3 {[%emt 0:00:02]} Bf5 {[%emt 0:01:36]} 13. Bxf5 {[%emt 0:00:03]} gxf5 {[%emt 0:00:01]} 14. Ke2 {[%emt 0:00:11]} b6 {[%emt 0:01:08]} 15. b4 {[%emt 0:00:14]} a5 {[%emt 0:00:39]} 16. b5 {[%emt 0:00:01]} bxc5 {[%emt 0:01:09]} 17. bxc6 {[%emt 0:00:02]} cxd4 {[%emt 0:00:11]} 18. exd4 {[%emt 0:00:03]} Nb6 {[%emt 0:00:13]} 19. Rc2 {[%emt 0:01:04]} Rfc8 {[%emt 0:01:08]} 20. Nb5 {[%emt 0:00:10]} a4 {[%emt 0:00:47]} 21. Na3 {[%emt 0:00:58]} Bf8 {[%emt 0:01:45]} 22. Ne5 {[%emt 0:00:32]} Ne4 {[%emt 0:00:44]} 23. g4 {[%emt 0:00:17]} Nd6 {[%emt 0:01:00]} 24. Rg1 {[%emt 0:00:29]} Kh7 {[%emt 0:00:06]} 25. Kd3 {[%emt 0:00:54]} f6 {[%emt 0:00:38]} 26. Nd7 {[%emt 0:00:03]} Nbc4 {[%emt 0:00:31]} 27. Bxd6 {[%emt 0:00:10]} Nxd6 {[%emt 0:00:18]} 28. Nb6 {[%emt 0:00:04]} fxg4 {[%emt 0:00:15]} 29. hxg4 {[%emt 0:00:06]} e5 {[%emt 0:00:08]} 30. c7 {[%emt 0:00:36]} e4+ {[%emt 0:00:03]} 31. Ke2 {[%emt 0:00:05]} f5 {[%emt 0:00:21]} 32. Nxd5 {[%emt 0:01:04]} Ra6 {[%emt 0:00:55]} 33. f3 {[%emt 0:00:59]} exf3+ 34. Kxf3 {[%emt 0:00:01]} fxg4+ {[%emt 0:00:28]} 35. Rxg4 {[%emt 0:00:04]} Nf5 {[%emt 0:00:05]} 36. Rf4 {[%emt 0:00:14]} Ne7 {[%emt 0:00:56]} 37. Nxe7 {[%emt 0:00:05]} 1-0

[Event "Kupreichik Memorial Rapid 2019"]
[Site "Minsk"]
[Date "2019.08.16"]
[Round "7.5"]
[White "Sychev, Klementy"]
[Black "Zarubitski, Viachaslau"]
[Result "1-0"]
[ECO "A06"]
[WhiteElo "2579"]
[BlackElo "2426"]
[Annotator "ChessBase"]
[PlyCount "67"]
[EventDate "2019.08.15"]
[EventType "swiss"]
[EventCountry "BLR"]
[SourceTitle "playchess.com"]
[Source "ChessBase"]
[SourceQuality "1"]
[TimeControl "900+10"]

1. Nf3 {[%emt 0:00:00]} d5 {[%emt 0:00:00]} 2. c4 {[%emt 0:00:00]} c6 {[%emt 0:00:00]} 3. g3 {[%emt 0:00:00]} Nf6 {[%emt 0:00:00]} 4. Bg2 {[%emt 0:00:02]} dxc4 {[%emt 0:00:11]} 5. O-O {[%emt 0:00:03]} Nbd7 {[%emt 0:00:16]} 6. Qc2 {[%emt 0:00:18]} Nb6 {[%emt 0:00:03]} 7. Na3 {[%emt 0:00:02]} Qd5 {[%emt 0:01:06]} 8. b3 {[%emt 0:00:09]} Bf5 {[%emt 0:01:54]} 9. bxc4 {[%emt 0:00:18]} Bxc2 {[%emt 0:00:03]} 10. cxd5 {[%emt 0:00:03]} Be4 {[%emt 0:00:08]} 11. dxc6 {[%emt 0:00:13]} Bxc6 {[%emt 0:00:02]} 12. Rb1 {[%emt 0:00:36]} e6 {[%emt 0:02:46]} 13. Nb5 {[%emt 0:00:04]} Bxb5 {[%emt 0:00:42]} 14. Rxb5 {[%emt 0:00:03]} Rc8 {[%emt 0:00:36]} 15. a4 {[%emt 0:02:29]} Nxa4 {[%emt 0:00:43]} 16. Rxb7 {[%emt 0:00:11]} Bc5 {[%emt 0:00:06]} 17. d4 {[%emt 0:00:24]} Bb6 {[%emt 0:00:36]} 18. Ba3 {[%emt 0:05:10]} Nd7 {[%emt 0:00:31]} 19. Ng5 {[%emt 0:00:35]} Nc3 {[%emt 0:02:24]} 20. Bf3 {[%emt 0:01:12]} Nb5 {[%emt 0:01:45]} 21. Nxf7 {[%emt 0:00:54]} Kxf7 {[%emt 0:01:50]} 22. Rxd7+ {[%emt 0:00:02]} Ke8 {[%emt 0:00:10]} 23. Re7+ {[%emt 0:00:01]} Kd8 {[%emt 0:00:01]} 24. Bb4 {[%emt 0:00:01]} Rc4 {[%emt 0:00:43]} 25. Rb7 {[%emt 0:00:11]} Nxd4 {[%emt 0:00:25]} 26. Bd6 {[%emt 0:00:27]} Bc7 {[%emt 0:02:07]} 27. Ba3 {[%emt 0:00:04]} Nxf3+ {[%emt 0:00:06]} 28. exf3 {[%emt 0:00:02]} Ra4 {[%emt 0:00:14]} 29. Rc1 {[%emt 0:00:17]} Rxa3 30. Rcxc7 {[%emt 0:00:19]} Rxf3 {[%emt 0:00:19]} 31. Rxg7 {[%emt 0:00:34]} Kc8 {[%emt 0:00:01]} 32. Rxa7 {[%emt 0:00:04]} Kb8 {[%emt 0:00:01]} 33. Rgb7+ Kc8 34. Rxh7 {[%emt 0:00:19]} 1-0

[Event "Kupreichik Memorial Rapid 2019"]
[Site "Minsk"]
[Date "2019.08.16"]
[Round "7.6"]
[White "Sveshnikov, Evgeny"]
[Black "Paravyan, David"]
[Result "1/2-1/2"]
[ECO "C50"]
[WhiteElo "2483"]
[BlackElo "2605"]
[Annotator "ChessBase"]
[PlyCount "239"]
[EventDate "2019.08.15"]
[EventType "swiss"]
[EventCountry "BLR"]
[SourceTitle "playchess.com"]
[Source "ChessBase"]
[SourceQuality "1"]
[TimeControl "900+10"]

1. e4 {[%emt 0:00:00]} e5 {[%emt 0:00:00]} 2. Nc3 {[%emt 0:00:00]} Nc6 {[%emt 0:00:00]} 3. Bc4 {[%emt 0:00:00]} Nf6 {[%emt 0:00:00]} 4. d3 {[%emt 0:00:00]} Bc5 {[%emt 0:00:14]} 5. Nf3 {[%emt 0:00:36]} O-O {[%emt 0:00:07]} 6. O-O {[%emt 0:00:58]} h6 {[%emt 0:00:54]} 7. h3 {[%emt 0:00:37]} a6 {[%emt 0:00:04]} 8. Re1 {[%emt 0:00:23]} d6 {[%emt 0:00:08]} 9. Be3 {[%emt 0:00:09]} Bxe3 {[%emt 0:00:04]} 10. Rxe3 {[%emt 0:00:02]} Na5 {[%emt 0:01:01]} 11. a4 {[%emt 0:00:49]} Nxc4 {[%emt 0:00:07]} 12. dxc4 {[%emt 0:00:01]} Be6 {[%emt 0:00:19]} 13. c5 {[%emt 0:00:33]} dxc5 {[%emt 0:00:42]} 14. Nxe5 {[%emt 0:00:04]} Qd4 {[%emt 0:00:10]} 15. Nf3 {[%emt 0:00:09]} Qb4 {[%emt 0:00:02]} 16. a5 {[%emt 0:02:00]} Rfd8 {[%emt 0:01:10]} 17. Qc1 {[%emt 0:00:02]} c4 {[%emt 0:00:07]} 18. Ne2 {[%emt 0:00:42]} b5 {[%emt 0:00:36]} 19. Ned4 {[%emt 0:00:26]} Qc5 {[%emt 0:01:18]} 20. c3 {[%emt 0:00:26]} Re8 {[%emt 0:00:49]} 21. Qe1 {[%emt 0:00:49]} Rad8 {[%emt 0:00:24]} 22. Nxe6 {[%emt 0:00:34]} Rxe6 {[%emt 0:00:23]} 23. Nd4 {[%emt 0:00:04]} Rxd4 {[%emt 0:03:13]} 24. cxd4 Qxd4 {[%emt 0:00:02]} 25. e5 {[%emt 0:00:37]} Nd5 {[%emt 0:00:01]} 26. Rd1 {[%emt 0:00:01]} Qc5 {[%emt 0:00:01]} 27. Rg3 {[%emt 0:00:05]} c6 {[%emt 0:00:08]} 28. Qe4 {[%emt 0:00:23]} g6 {[%emt 0:02:45]} 29. Rd2 {[%emt 0:00:59]} b4 {[%emt 0:00:13]} 30. Kh2 {[%emt 0:00:37]} c3 {[%emt 0:01:18]} 31. bxc3 {[%emt 0:00:12]} bxc3 {[%emt 0:00:01]} 32. Rc2 {[%emt 0:00:25]} Kh7 {[%emt 0:00:01]} 33. Qf3 {[%emt 0:01:45]} Qe7 {[%emt 0:00:13]} 34. Rxc3 {[%emt 0:02:22]} Nxc3 {[%emt 0:00:02]} 35. Qxc3 {[%emt 0:00:00]} Rxe5 {[%emt 0:00:04]} 36. Qxc6 {[%emt 0:00:11]} Rxa5 {[%emt 0:00:02]} 37. Rd3 {[%emt 0:00:55]} Rf5 {[%emt 0:00:26]} 38. Qxa6 {[%emt 0:00:52]} Qc7+ {[%emt 0:00:24]} 39. Qd6 {[%emt 0:00:06]} Qxd6+ {[%emt 0:00:21]} 40. Rxd6 {[%emt 0:00:01]} Rxf2 {[%emt 0:00:01]} 41. Kg3 {[%emt 0:00:10]} Rf1 {[%emt 0:00:03]} 42. h4 {[%emt 0:00:08]} Kg7 {[%emt 0:00:13]} 43. Ra6 {[%emt 0:00:07]} Rf6 {[%emt 0:00:06]} 44. Ra7 {[%emt 0:00:09]} Rb6 {[%emt 0:00:01]} 45. Kh3 {[%emt 0:00:06]} Kf6 {[%emt 0:00:03]} 46. g3 {[%emt 0:00:05]} Rb2 {[%emt 0:00:10]} 47. Ra6+ {[%emt 0:00:07]} Kg7 {[%emt 0:00:01]} 48. Ra7 {[%emt 0:00:03]} Rf2 {[%emt 0:00:02]} 49. Rb7 {[%emt 0:00:02]} Re2 {[%emt 0:00:33]} 50. Kg4 {[%emt 0:00:07]} Re3 {[%emt 0:00:12]} 51. Kf4 {[%emt 0:00:04]} Ra3 {[%emt 0:00:01]} 52. Rc7 {[%emt 0:00:06]} Ra5 {[%emt 0:00:29]} 53. Kf3 {[%emt 0:00:09]} Ra4 {[%emt 0:00:14]} 54. Rb7 {[%emt 0:00:04]} Rd4 {[%emt 0:00:09]} 55. Ra7 {[%emt 0:00:03]} Kf6 {[%emt 0:00:05]} 56. Ra6+ {[%emt 0:00:09]} Ke5 {[%emt 0:00:01]} 57. h5 {[%emt 0:00:43]} Rd3+ {[%emt 0:00:01]} 58. Kg2 {[%emt 0:00:08]} Rd6 {[%emt 0:00:01]} 59. Ra7 {[%emt 0:00:16]} Kf6 {[%emt 0:00:09]} 60. hxg6 {[%emt 0:00:02]} fxg6 {[%emt 0:00:03]} 61. Ra5 {[%emt 0:00:10]} Re6 {[%emt 0:00:01]} 62. Kh3 {[%emt 0:00:17]} Re5 {[%emt 0:00:01]} 63. Ra4 {[%emt 0:00:07]} h5 {[%emt 0:00:13]} 64. Rf4+ {[%emt 0:00:24]} Kg5 {[%emt 0:00:01]} 65. Rf3 {[%emt 0:00:04]} Ra5 {[%emt 0:00:08]} 66. Rf4 {[%emt 0:00:08]} Ra3 {[%emt 0:00:10]} 67. Rb4 {[%emt 0:00:11]} Rf3 {[%emt 0:00:02]} 68. Kg2 {[%emt 0:00:04]} Rf5 {[%emt 0:00:02]} 69. Kh3 {[%emt 0:00:02]} Rf6 {[%emt 0:00:26]} 70. Ra4 {[%emt 0:00:12]} Rf3 {[%emt 0:00:13]} 71. Kg2 {[%emt 0:00:05]} Re3 {[%emt 0:00:17]} 72. Ra5+ {[%emt 0:00:09]} Kg4 {[%emt 0:00:03]} 73. Ra4+ {[%emt 0:00:01]} Kf5 {[%emt 0:00:01]} 74. Rf4+ {[%emt 0:00:01]} Ke6 {[%emt 0:00:07]} 75. Ra4 {[%emt 0:00:14]} g5 {[%emt 0:00:13]} 76. Kf2 {[%emt 0:00:15]} Re5 {[%emt 0:00:13]} 77. Rb4 {[%emt 0:00:48]} Kf5 {[%emt 0:00:04]} 78. Kf3 {[%emt 0:00:05]} Rd5 {[%emt 0:00:18]} 79. Rb2 {[%emt 0:00:16]} Rd3+ {[%emt 0:00:21]} 80. Kg2 {[%emt 0:00:01]} Re3 {[%emt 0:00:08]} 81. Ra2 {[%emt 0:00:02]} Re4 {[%emt 0:00:26]} 82. Rb2 {[%emt 0:00:09]} Rd4 {[%emt 0:00:43]} 83. Re2 {[%emt 0:00:07]} Rd5 {[%emt 0:00:04]} 84. Kf3 {[%emt 0:00:07]} Re5 {[%emt 0:00:14]} 85. Ra2 {[%emt 0:00:03]} Rb5 {[%emt 0:00:38]} 86. Kg2 {[%emt 0:00:03]} Rd5 {[%emt 0:00:09]} 87. Kf3 {[%emt 0:00:03]} g4+ {[%emt 0:00:03]} 88. Kf2 {[%emt 0:00:08]} Ke4 {[%emt 0:00:03]} 89. Re2+ {[%emt 0:00:02]} Kd3 {[%emt 0:00:05]} 90. Ra2 {[%emt 0:00:23]} Rf5+ {[%emt 0:00:04]} 91. Kg2 {[%emt 0:00:01]} Rc5 {[%emt 0:00:04]} 92. Ra3+ {[%emt 0:00:13]} Kd2 {[%emt 0:00:35]} 93. Kf2 {[%emt 0:00:26]} Rf5+ {[%emt 0:00:23]} 94. Kg2 {[%emt 0:00:02]} Rd5 {[%emt 0:00:07]} 95. Kf2 {[%emt 0:00:07]} Rf5+ {[%emt 0:00:02]} 96. Kg2 {[%emt 0:00:01]} Re5 {[%emt 0:00:06]} 97. Ra2+ {[%emt 0:00:07]} Kd3 {[%emt 0:00:02]} 98. Ra3+ {[%emt 0:00:01]} Ke4 {[%emt 0:00:06]} 99. Ra4+ {[%emt 0:00:03]} Kf5 {[%emt 0:00:01]} 100. Rf4+ {[%emt 0:00:03]} Kg5 {[%emt 0:00:01]} 101. Rf8 {[%emt 0:00:06]} Re2+ {[%emt 0:00:03]} 102. Kf1 {[%emt 0:00:02]} Rc2 {[%emt 0:00:07]} 103. Kg1 {[%emt 0:00:07]} Rc6 {[%emt 0:00:13]} 104. Kg2 {[%emt 0:00:05]} Rd6 {[%emt 0:00:06]} 105. Rg8+ {[%emt 0:00:05]} Kf5 {[%emt 0:00:01]} 106. Rf8+ {[%emt 0:00:05]} Ke4 {[%emt 0:00:14]} 107. Rf4+ {[%emt 0:00:07]} Ke3 {[%emt 0:00:01]} 108. Rf5 {[%emt 0:00:04]} Rd2+ {[%emt 0:00:09]} 109. Kg1 {[%emt 0:00:02]} Re2 {[%emt 0:00:19]} 110. Rxh5 {[%emt 0:00:12]} Kf3 {[%emt 0:00:01]} 111. Ra5 {[%emt 0:00:01]} Rg2+ {[%emt 0:00:20]} 112. Kf1 {[%emt 0:00:10]} Rf2+ {[%emt 0:00:04]} 113. Kg1 {[%emt 0:00:02]} Kxg3 {[%emt 0:00:03]} 114. Ra3+ {[%emt 0:00:03]} Rf3 {[%emt 0:00:02]} 115. Ra2 {[%emt 0:00:02]} Rb3 {[%emt 0:00:03]} 116. Rg2+ {[%emt 0:00:03]} Kh4 {[%emt 0:00:02]} 117. Rh2+ {[%emt 0:00:07]} Kg3 {[%emt 0:00:12]} 118. Rg2+ {[%emt 0:00:02]} Kh3 {[%emt 0:00:01]} 119. Rh2+ {[%emt 0:00:01]} Kg3 {[%emt 0:00:01]} 120. Rg2+ {[%emt 0:00:01]} 1/2-1/2